bitfinex-derivatives/quotes_ETHF0:USTF0_20250103
["timestamp","ask_amount","ask_price","bid_price","bid_amount"]
[1735872788411,2.27557985,3462.9,3462.2,3.2078]
[1735872788612,0.28909,3462.4,3462.2,3.4969]
[1735872789313,2.27557985,3462.9,3462.2,3.2078]
[1735872789513,0.28908,3462.5,3462.3,0.28909]
[1735872791015,0.28907,3462.6,3462.4,0.28909]
[1735872791312,0.28908,3462.6,3462.3,0.28909]
[1735872791513,0.28908,3462.5,3462.3,0.28909]
[1735872791908,0.28907,3462.6,3462.3,0.28909]
[1735872792311,0.28908,3462.5,3462.3,0.28909]
[1735872792511,0.28908,3462.6,3462.2,3.2078]
[1735872792816,0.28908,3462.5,3462.3,0.28909]
[1735872793611,3.2078,3462.8,3462.2,3.2078]
[1735872793810,0.28908,3462.5,3462.3,0.28909]
[1735872794314,3.49685,3462.8,3462.6,0.28907]
[1735872794615,2.27557985,3462.9,3462.5,0.28907]
[1735872794915,0.28907,3462.6,3462.4,0.28908]
[1735872795217,2.27557985,3462.9,3462.4,0.28908]
[1735872795412,2.27557985,3462.9,3462.3,0.28909]
[1735872795613,0.28909,3462.4,3462.2,3.4969]
[1735872795819,2.27557985,3462.9,3462.3,0.28909]
[1735872796017,0.28908,3462.6,3462.3,0.28909]
[1735872796912,2.27557985,3462.9,3462.2,3.2078]
[1735872797113,0.28907,3462.7,3462.5,0.28908]
[1735872797319,0.28907,3462.7,3462.4,0.28908]
[1735872799011,0.28907,3462.7,3462.2,3.2078]
[1735872799219,2.27557985,3462.9,3462.5,0.28907]
[1735872799415,2.27557985,3462.9,3462.2,3.2078]
[1735872799618,2.56462985,3462.9,3462.6,0.28906]
[1735872799819,0.28905,3462.8,3462.6,0.28906]
[1735872800017,2.56462985,3462.9,3462.6,0.28906]
[1735872801318,2.27557985,3462.9,3462.2,3.2078]
[1735872801520,0.28906,3462.8,3462.5,0.28907]
[1735872801908,2.27557985,3462.9,3462.2,3.2078]
[1735872802115,0.28904,3463.0,3462.8,0.28905]
[1735872803114,2.27557985,3463.2,3462.8,0.28905]
[1735872803312,0.28903,3463.1,3462.8,0.28905]
[1735872803514,2.27557985,3463.2,3462.8,0.28905]
[1735872803916,0.28904,3463.1,3462.2,3.93056]
[1735872804113,0.28904,3463.1,3462.9,0.28904]
[1735872804717,2.27557985,3463.2,3462.6,3.2078]
[1735872804911,2.56459985,3463.2,3462.6,3.2078]
[1735872805118,2.56459985,3463.2,3462.9,0.28904]
[1735872805317,0.28902,3463.2,3462.9,0.28904]
[1735872805520,0.28903,3463.1,3462.9,0.28904]
[1735872806622,0.28906,3462.8,3462.6,3.2078]
[1735872806823,0.28905,3462.9,3462.6,3.49687]
[1735872807026,2.27557985,3463.2,3462.6,3.2078]
[1735872807222,0.28906,3462.8,3462.6,3.2078]
[1735872807921,2.27557985,3463.2,3462.6,3.2078]
[1735872807922,0.28905,3462.9,3462.6,3.49686]
[1735872808114,0.28905,3462.9,3462.6,3.49687]
[1735872808321,2.27557985,3463.2,3462.6,3.2078]
[1735872808521,0.28906,3462.8,3462.6,3.2078]
[1735872809322,0.28906,3462.7,3462.6,3.2078]
[1735872809623,0.28906,3462.8,3462.6,3.2078]
[1735872811626,4.53547048,3462.9,3462.6,3.2078]
[1735872811926,0.28906,3462.7,3462.6,3.2078]
[1735872812523,2.54894063,3462.9,3462.7,0.28906]
[1735872812824,2.25989063,3462.9,3462.8,0.28905]
[1735872814226,3.38983594,3463.0,3462.8,5.19721794]
[1735872814423,2.54892063,3463.1,3462.8,5.19721794]
[1735872814726,0.28904,3463.0,3462.8,5.19721794]
[1735872815126,2.54892063,3463.1,3462.8,5.19721794]
[1735872815531,2.54892063,3463.1,3462.8,0.28905]
[1735872816431,2.54892063,3463.1,3462.9,0.28904]
[1735872816824,2.54892063,3463.1,3462.8,3.49685]
[1735872817025,2.25989063,3463.1,3462.9,0.28904]
[1735872817234,2.25989063,3463.1,3463.0,0.28904]
[1735872818121,2.25989063,3463.4,3463.0,4.90727368]
[1735872818329,2.25989063,3463.4,3463.1,0.28902]
[1735872818523,2.25989063,3463.4,3463.0,4.90727368]
[1735872818725,2.25989063,3463.4,3463.3,3.49681]
[1735872819431,40.8,3463.5,3463.3,3.2078]
[1735872819632,2.25989063,3463.6,3463.3,3.2078]
[1735872819835,2.25989063,3463.6,3463.5,0.28899]
[1735872820331,2.25989063,3463.6,3463.3,3.2078]
[1735872820527,40.8,3463.7,3463.5,0.28899]
[1735872821127,40.8,3463.7,3463.4,0.289]
[1735872822141,41.08898,3463.7,3463.4,0.289]
[1735872822435,40.8,3463.7,3463.3,3.2078]
[1735872822624,0.28899,3463.6,3463.3,3.2078]
[1735872822827,41.08898,3463.7,3463.3,3.49681]
[1735872823231,41.08898,3463.7,3463.3,3.2078]
[1735872823437,41.08898,3463.7,3463.4,0.289]
[1735872825331,40.8,3463.7,3463.4,0.289]
[1735872825537,41.08898,3463.7,3463.4,0.289]
[1735872825738,41.08898,3463.7,3463.3,3.49681]
[1735872826039,0.28899,3463.6,3463.3,3.49681]
[1735872826939,0.28899,3463.6,3463.4,3.2078]
[1735872827337,40.8,3463.7,3463.4,3.2078]
[1735872827635,41.08898,3463.7,3463.4,3.4968]
[1735872828439,41.08898,3463.7,3463.4,3.2078]
[1735872829137,41.08898,3463.7,3463.4,3.4968]
[1735872829840,0.28899,3463.6,3463.4,3.2078]
[1735872830039,41.08898,3463.7,3463.4,3.2078]
[1735872830737,41.08898,3463.7,3463.4,3.4968]
[1735872830941,40.8,3463.7,3463.4,3.2078]
[1735872831241,41.08898,3463.7,3463.4,3.2078]
[1735872831433,41.08898,3463.7,3463.4,3.4968]
[1735872832038,41.08898,3463.7,3463.4,3.2078]
[1735872832039,0.28899,3463.6,3463.4,3.2078]
[1735872832237,40.8,3463.7,3463.4,3.2078]
[1735872832736,0.28899,3463.6,3463.4,3.2078]
[1735872833145,2.56456985,3463.5,3463.4,3.2078]
[1735872833539,2.56456985,3463.5,3463.1,6.80673276]
[1735872833540,2.27557985,3463.5,3463.1,6.80673276]
[1735872833740,2.56459985,3463.2,3463.1,6.80673276]
[1735872834536,2.56459985,3463.2,3463.0,3.2078]
[1735872834537,2.27557985,3463.2,3463.0,3.2078]
[1735872834743,0.28903,3463.1,3463.0,3.2078]
[1735872839345,2.27557985,3463.2,3463.0,3.2078]
[1735872839545,0.28747412,3463.1,3463.0,3.2078]
[1735872840447,0.28903,3463.1,3463.0,3.2078]
[1735872841246,0.28903,3463.1,3462.9,0.28904]
[1735872841447,2.56459985,3463.2,3463.0,0.28904]
[1735872841647,0.28903,3463.1,3462.9,0.28904]
[1735872841847,0.28903,3463.1,3462.6,3.2078]
[1735872842744,0.28903,3463.1,3462.8,0.28905]
[1735872842949,0.28903,3463.1,3462.6,3.2078]
[1735872842950,0.28906,3462.7,3462.6,3.2078]
[1735872844745,0.28907,3462.6,3462.5,6.80673276]
[1735872844950,2.56464985,3462.6,3462.5,6.80673276]
[1735872845150,43.36464985,3462.6,3462.5,6.80673276]
[1735872845350,43.07557985,3462.6,3462.3,15.8712967]
[1735872845651,0.28908,3462.5,3462.3,6.80673276]
[1735872845853,43.07557985,3462.6,3462.3,6.80673276]
[1735872846151,0.28908,3462.5,3462.3,6.80673276]
[1735872846340,0.28908,3462.5,3462.3,7.09582276]
[1735872846744,0.28908,3462.5,3462.3,0.28909]
[1735872846940,45.33547048,3462.6,3462.3,0.28909]
[1735872847142,0.28909,3462.4,3461.9,0.28913]
[1735872847351,0.28909,3462.4,3462.3,0.28909]
[1735872847751,40.8,3462.5,3461.8,10.01453276]
[1735872848148,0.28909,3462.4,3462.0,0.28912]
[1735872848348,0.28911,3462.2,3462.0,0.28912]
[1735872848551,0.28912,3462.1,3461.9,0.28912]
[1735872849155,40.8,3462.5,3461.8,10.01453276]
[1735872849348,0.28912,3462.0,3461.8,10.01453276]
[1735872849653,2.27557985,3462.3,3461.9,0.28913]
[1735872849852,0.28911,3462.1,3461.8,3.2078]
[1735872850150,2.27557985,3462.3,3461.8,3.2078]
[1735872850355,0.28913,3461.9,3461.8,3.2078]
[1735872854254,2.27557985,3462.3,3461.8,3.2078]
[1735872854554,0.28912,3462.0,3461.8,3.2078]
[1735872854857,0.28913,3461.9,3461.8,3.2078]
[1735872855554,0.28911,3462.1,3461.9,0.28912]
[1735872856057,0.28912,3462.0,3461.9,0.28913]
[1735872856652,0.28912,3462.1,3461.9,0.28913]
[1735872856853,2.27557985,3462.3,3462.1,0.28911]
[1735872856854,0.28911,3462.2,3462.1,0.28911]
[1735872857352,0.2891,3462.2,3462.0,0.28912]
[1735872857759,2.27557985,3462.3,3461.8,3.49693]
[1735872858060,46.99040063,3462.5,3461.8,3.49693]
[1735872858061,2.27557985,3462.0,3461.8,3.49693]
[1735872859256,2.27557985,3462.0,3461.8,3.2078]
[1735872859457,0.28913,3461.9,3461.8,3.2078]
[1735872860761,0.28917,3461.5,3461.4,0.28917]
[1735872861258,2.27557985,3461.7,3461.2,3.2078]
[1735872861462,0.28917,3461.4,3461.2,3.49698]
[1735872861654,0.28917,3461.4,3461.2,3.2078]
[1735872862250,0.28918,3461.3,3461.2,3.2078]
[1735872862461,0.28919,3461.2,3460.9,7.09594276]
[1735872862660,0.28919,3461.2,3460.9,0.28921]
[1735872864663,2.27557985,3461.4,3460.8,3.49701]
[1735872864857,0.28919,3461.2,3460.8,3.49701]
[1735872865358,43.07557985,3461.4,3460.8,3.49701]
[1735872865566,0.28919,3461.2,3460.9,0.28921]
[1735872867264,2.27557985,3461.4,3460.8,3.2078]
[1735872867564,0.28921,3461.0,3460.8,3.2078]
[1735872867966,2.56477985,3461.1,3460.8,3.2078]
[1735872868162,2.27557985,3461.1,3460.9,0.28921]
[1735872868566,2.27557985,3461.1,3460.8,3.2078]
[1735872868766,2.56477985,3461.1,3460.8,3.2078]
[1735872869066,2.56477985,3461.1,3460.8,3.49702]
[1735872869661,2.27557985,3461.1,3460.9,0.28921]
[1735872869864,0.28919,3461.2,3460.9,0.28921]
[1735872870672,2.27557985,3461.4,3460.8,3.2078]
[1735872870873,0.28919,3461.2,3460.9,0.28921]
[1735872872872,40.8,3461.7,3460.8,3.2078]
[1735872873070,0.28913,3461.9,3461.6,0.28915]
[1735872873274,2.27557985,3462.1,3461.5,3.2078]
[1735872873773,2.27557985,3462.1,3461.9,0.28913]
[1735872873975,2.56469985,3462.1,3461.8,0.28913]
[1735872874474,2.56469985,3462.1,3461.5,3.2078]
[1735872874669,2.56469985,3462.1,3461.9,0.28913]
[1735872874975,2.27557985,3462.1,3461.9,0.28913]
[1735872875162,40.8,3462.2,3462.1,0.28911]
[1735872880284,40.8,3462.2,3461.9,3.2078]
[1735872880785,41.08911,3462.2,3462.0,0.28912]
[1735872881778,40.8,3462.2,3462.1,0.28911]
[1735872883377,0.28911,3462.1,3462.0,3.2078]
[1735872884479,41.08911,3462.2,3462.0,3.49692]
[1735872885484,0.28911,3462.1,3462.0,3.2078]
[1735872886888,0.28911,3462.1,3461.9,0.28913]
[1735872888185,0.28911,3462.1,3461.9,0.28912]
[1735872888389,40.8,3462.2,3461.6,4.3328]
[1735872888586,41.08911,3462.2,3462.0,0.28912]
[1735872888888,40.8,3462.2,3461.6,4.3328]
[1735872889090,0.28911,3462.1,3461.8,0.28913]
[1735872889290,0.28912,3462.0,3461.8,0.28913]
[1735872889877,0.28912,3462.0,3461.7,0.28914]
[1735872890283,0.28912,3462.0,3461.6,8.86764104]
[1735872890588,2.56468985,3462.1,3461.8,0.28913]
[1735872890789,0.28912,3462.0,3461.7,0.28914]
[1735872893191,2.27557985,3462.1,3461.7,0.28914]
[1735872893392,0.28912,3462.0,3461.7,0.28914]
[1735872894291,1.00265813,3461.8,3461.7,4.82398104]
[1735872901093,1.00265813,3462.0,3461.7,4.53484104]
[1735872901286,1.00265813,3462.0,3461.9,0.28912]
[1735872901490,2.25205342,3462.3,3462.2,0.2891]
[1735872902301,3.25471155,3462.6,3462.5,0.28908]
[1735872903701,1.00265813,3462.6,3462.5,0.28908]
[1735872903899,1.00265813,3462.6,3462.2,4.53484104]
[1735872904095,1.00265813,3462.4,3462.3,0.28909]
[1735872905306,1.00265813,3462.6,3462.1,8.74529917]
[1735872905503,1.00265813,3462.6,3462.5,0.28907]
[1735872908697,1.00265813,3462.6,3462.2,4.53484104]
[1735872908893,1.00265813,3462.3,3462.2,4.53484104]
[1735872909202,1.29174813,3462.3,3462.2,4.53484104]
[1735872909401,42.09174813,3462.3,3462.2,4.53484104]
[1735872910604,0.28911,3462.2,3461.9,0.28913]
[1735872910901,1.00265813,3462.0,3461.9,0.28913]
[1735872912304,41.0891,3462.3,3462.0,0.28912]
[1735872914594,4.53274708,3462.5,3461.8,4.53484104]
[1735872914799,4.82182708,3462.5,3462.2,0.2891]
[1735872915803,2.56977366,3462.5,3462.2,0.2891]
[1735872916412,2.28069366,3462.5,3462.1,3.2078]
[1735872916608,0.28909,3462.4,3462.1,3.49691]
[1735872916906,0.28909,3462.4,3462.1,8.03175104]
[1735872917408,0.28909,3462.4,3462.2,0.2891]
[1735872918308,2.54114342,3462.4,3462.2,0.2891]
[1735872918911,2.54114342,3462.4,3462.1,8.03175104]
[1735872919101,2.54114342,3462.4,3462.2,0.2891]
[1735872919302,0.2891,3462.3,3462.1,8.03175104]
[1735872919502,2.54114342,3462.4,3462.2,0.2891]
[1735872919805,0.2891,3462.2,3462.1,7.74264104]
[1735872920201,2.56979366,3462.2,3462.1,7.74264104]
[1735872922405,4.82184708,3462.2,3462.1,7.74264104]
[1735872923711,2.56979366,3462.2,3462.1,3.2078]
[1735872925108,7.0739005,3462.2,3462.1,3.2078]
[1735872927416,6.7848005,3462.2,3461.8,3.2078]
[1735872927716,0.28914,3461.8,3461.7,0.28914]
[1735872928009,0.28914,3461.8,3461.7,3.49694]
[1735872928415,0.28912,3462.1,3461.8,0.28914]
[1735872928611,0.28912,3462.1,3461.9,0.28912]
[1735872928915,3.68438467,3462.1,3461.9,0.28912]
[1735872929318,3.39526467,3462.1,3461.9,0.28912]
[1735872929517,0.28912,3462.0,3461.9,0.28912]
[1735872930406,2.55258252,3462.0,3461.9,0.28912]
[1735872931012,2.55258252,3462.0,3461.8,0.28913]
[1735872931218,0.28914,3461.8,3461.7,8.03178104]
[1735872932116,0.28914,3461.8,3461.7,7.74264104]
[1735872932823,0.28914,3461.8,3461.7,3.2078]
[1735872933716,41.08914,3461.8,3461.7,3.2078]
[1735872934217,42.09210959,3461.8,3461.7,3.2078]
[1735872935521,44.35557211,3461.8,3461.7,3.2078]
[1735872936920,45.48737426,3461.8,3461.7,3.2078]
[1735872937723,42.09210959,3461.8,3461.7,3.2078]
[1735872942531,44.35463092,3461.8,3461.7,3.2078]
[1735872943622,43.35166133,3461.8,3461.7,3.2078]
[1735872943817,2.55166133,3461.8,3461.7,3.49694]
[1735872944228,3.55463092,3461.8,3461.7,3.2078]
[1735872944932,3.55463092,3461.8,3461.7,3.49694]
[1735872945235,1.29210959,3461.8,3461.7,3.49694]
[1735872945427,1.29210959,3461.8,3461.7,3.2078]
[1735872948236,42.09210959,3461.8,3461.7,3.2078]
[1735872949827,41.80296959,3461.8,3461.6,3.2078]
[1735872950027,0.28914,3461.7,3461.6,3.2078]
[1735872952832,0.28914,3461.7,3461.6,3.49695]
[1735872953037,40.8,3461.8,3461.7,0.28914]
[1735872953225,2.26252133,3462.0,3461.6,3.2078]
[1735872953429,3.39439475,3462.1,3461.8,0.28913]
[1735872953430,2.55165133,3461.9,3461.8,0.28913]
[1735872953629,0.28914,3461.8,3461.7,0.28914]
[1735872954635,0.28914,3461.7,3461.6,3.2078]
[1735872954838,0.28914,3461.7,3461.6,8.03179104]
[1735872956240,0.28914,3461.7,3461.6,8.40467966]
[1735872956939,0.28914,3461.8,3461.6,8.40467966]
[1735872957133,43.06252133,3462.0,3461.6,8.11552966]
[1735872957335,0.28914,3461.7,3461.6,8.11552966]
[1735872959439,0.28914,3461.7,3461.6,7.75344762]
[1735872963044,2.26252133,3461.8,3461.7,0.28914]
[1735872963440,2.26252133,3461.8,3461.6,7.75344762]
[1735872963642,2.55166133,3461.8,3461.6,8.04259762]
[1735872963939,2.55166133,3461.8,3461.6,7.75344762]
[1735872964138,2.55166133,3461.8,3461.7,0.28914]
[1735872964331,2.26252133,3461.8,3461.6,7.75344762]
[1735872964542,2.55166133,3461.8,3461.6,8.04259762]
[1735872965047,2.55166133,3461.8,3461.7,4.54564762]
[1735872966246,0.28914,3461.7,3461.6,7.75344762]
[1735872966936,0.28914,3461.7,3461.6,8.04259762]
[1735872967638,2.55526898,3461.7,3461.6,8.40947575]
[1735872967838,2.26612898,3461.7,3461.6,8.40947575]
[1735872968742,2.26612898,3461.7,3461.6,15.19381112]
[1735872970145,2.26612898,3461.7,3461.6,14.90466112]
[1735872970347,3.55802428,3461.7,3461.6,14.90466112]
[1735872972552,3.26888428,3461.7,3461.6,15.19381112]
[1735872972851,2.26612898,3461.7,3461.6,15.19381112]
[1735872976748,3.55802428,3461.7,3461.6,11.69686112]
[1735872976956,4.56077958,3461.7,3461.6,7.39453489]
[1735872977249,3.55802428,3461.7,3461.6,7.39453489]
[1735872977851,50.36077958,3461.7,3461.6,6.38903489]
[1735872978048,0.28916,3461.5,3461.4,7.64538049]
[1735872978347,2.2946706,3461.5,3461.2,11.30722562]
[1735872978551,0.28921,3460.9,3460.8,3.2078]
[1735872978752,1.2919653,3460.9,3460.8,3.2078]
[1735872979556,1.72594421,3460.9,3460.8,3.2078]
[1735872980253,3.00601835,3460.9,3460.8,3.2078]
[1735872980852,6.39929457,3460.9,3460.8,3.2078]
[1735872981159,47.19929457,3460.9,3460.8,3.2078]
[1735872982555,7.53221619,3460.9,3460.8,3.2078]
[1735872984155,3.00601835,3460.9,3460.8,3.2078]
[1735872985258,2.57203944,3460.9,3460.8,3.2078]
[1735872990862,0.28921,3460.9,3460.8,3.2078]
[1735872992461,2.57203944,3460.9,3460.8,3.2078]
[1735872992858,43.37203944,3460.9,3460.8,3.2078]
[1735872994569,0.28925,3460.5,3460.4,3.2078]
[1735872994872,2.57207944,3460.5,3460.4,3.2078]
[1735872999063,2.28282944,3460.5,3460.0,3.2078]
[1735872999564,0.28927,3460.2,3460.0,3.49708]
[1735873000282,0.28927,3460.3,3460.1,0.28927]
[1735873000471,0.28927,3460.2,3460.0,3.49708]
[1735873000772,2.28282944,3460.5,3460.0,3.49708]
[1735873000773,0.28927,3460.3,3460.1,0.28928]
[1735873000972,0.28927,3460.3,3460.1,0.28927]
[1735873002068,0.28927,3460.2,3460.1,0.28927]
[1735873002267,0.28927,3460.2,3460.0,3.49708]
[1735873003169,1.0035791,3460.1,3460.0,3.2078]
[1735873003467,1.2928591,3460.1,3460.0,3.2078]
[1735873011580,1.0035791,3460.1,3460.0,3.49709]
[1735873011980,1.2928591,3460.1,3460.0,3.2078]
[1735873012373,1.0035791,3460.1,3460.0,3.49709]
[1735873012574,1.2928591,3460.1,3460.0,3.2078]
[1735873014188,42.0928591,3460.1,3460.0,3.2078]
[1735873015384,41.08928,3460.1,3460.0,3.2078]
[1735873015678,2.25898206,3460.6,3460.1,0.28927]
[1735873015891,1.2928391,3460.3,3460.1,0.28927]
[1735873016081,1.0035791,3460.3,3460.2,0.28927]
[1735873016280,1.2928491,3460.3,3460.1,0.28928]
[1735873016687,1.2928491,3460.3,3460.2,0.28927]
[1735873016874,1.0035791,3460.3,3460.0,3.2078]
[1735873017081,1.0035791,3460.3,3460.2,0.28927]
[1735873017979,1.2928391,3460.3,3460.2,0.28927]
[1735873018389,43.05898206,3460.6,3460.2,1.0035791]
[1735873018680,43.05898206,3460.6,3460.5,3.49705]
[1735873018882,44.06256116,3460.6,3460.5,3.49705]
[1735873019097,44.35180116,3460.6,3460.5,3.2078]
[1735873021797,45.91535369,3460.6,3460.5,3.2078]
[1735873022298,47.19535369,3460.6,3460.5,3.2078]
[1735873022992,43.8068806,3460.6,3460.5,3.2078]
[1735873024395,47.86538062,3460.6,3460.5,3.2078]
[1735873025792,47.57614062,3460.6,3460.3,0.28926]
[1735873025987,0.28925,3460.5,3460.3,0.28926]
[1735873026387,0.28926,3460.4,3460.2,3.49707]
[1735873026588,0.28926,3460.4,3460.2,3.2078]
[1735873026789,0.28926,3460.4,3460.3,0.28926]
[1735873027795,0.7233215,3460.4,3460.3,0.28926]
[1735873028093,0.4340615,3460.4,3460.2,3.2078]
[1735873028688,0.4340615,3460.4,3460.3,0.28926]
[1735873028897,4.52093393,3460.5,3460.2,3.2078]
[1735873029195,3.82013393,3460.6,3460.5,0.28925]
[1735873030395,43.06070518,3460.7,3460.6,0.28924]
[1735873030597,43.06070518,3460.7,3460.6,3.49704]
[1735873033592,2.26070518,3460.7,3460.6,3.49704]
[1735873034597,2.54991518,3460.9,3460.7,0.28922]
[1735873035003,2.26070518,3460.9,3460.7,0.28923]
[1735873035501,2.26070518,3460.9,3460.8,0.28922]
[1735873035898,2.54991518,3460.9,3460.7,0.28922]
[1735873036401,2.26070518,3460.9,3460.6,7.75574881]
[1735873036707,0.28923,3460.7,3460.6,7.75574881]
[1735873037499,2.5728091,3460.7,3460.6,7.75574881]
[1735873038204,2.5728091,3460.7,3460.6,3.2078]
[1735873038702,2.2835791,3460.7,3460.5,4.54794881]
[1735873038896,0.28924,3460.6,3460.5,4.54794881]
[1735873039304,2.2835791,3460.7,3460.2,7.75574881]
[1735873039305,0.28926,3460.3,3460.2,7.75574881]
[1735873039500,2.2835791,3460.4,3460.2,7.75574881]
[1735873039699,2.2835791,3460.4,3460.2,8.04501881]
[1735873039700,2.5728391,3460.4,3460.2,8.04501881]
[1735873040700,2.5728391,3460.4,3460.2,3.49707]
[1735873040701,4.83251539,3460.4,3460.2,3.49707]
[1735873041096,2.25967629,3460.4,3460.3,0.28926]
[1735873042306,2.25967629,3460.4,3460.2,3.2078]
[1735873042802,2.54892629,3460.4,3460.2,3.49707]
[1735873044008,2.25967629,3460.4,3460.2,3.2078]
[1735873044208,2.25967629,3460.4,3460.3,0.28926]
[1735873044410,2.54892629,3460.4,3460.3,0.28926]
[1735873045313,2.54892629,3460.4,3460.2,3.2078]
[1735873045314,0.28926,3460.3,3460.2,3.2078]
[1735873046507,2.54893629,3460.4,3460.3,0.28926]
[1735873046907,0.28926,3460.3,3460.2,3.2078]
[1735873050910,4.54325539,3460.4,3460.1,4.54794881]
[1735873051110,0.28927,3460.2,3460.1,4.54794881]
[1735873052421,0.2893,3459.9,3459.8,3.2078]
[1735873053614,2.54868523,3459.9,3459.8,3.2078]
[1735873053812,2.54868523,3459.9,3459.7,0.2893]
[1735873054110,2.54868523,3459.9,3459.8,3.2078]
[1735873054820,2.25938523,3459.9,3459.8,3.4971]
[1735873055115,2.25938523,3460.0,3459.9,0.2893]
[1735873056719,2.54865523,3460.2,3460.0,0.28928]
[1735873057111,2.54865523,3460.2,3459.9,4.83724881]
[1735873057112,0.28929,3460.0,3459.9,4.83724881]
[1735873057317,0.28928,3460.1,3459.9,4.83724881]
[1735873057621,0.28929,3460.0,3459.9,4.83724881]
[1735873058023,0.28929,3460.0,3459.9,0.2893]
[1735873058623,2.54866523,3460.1,3459.9,0.2893]
[1735873059623,2.25938523,3460.1,3459.8,3.2078]
[1735873059823,2.25938523,3460.1,3459.9,0.28929]
[1735873060023,2.54866523,3460.1,3459.9,0.28929]
[1735873061222,2.54866523,3460.1,3460.0,3.2078]
[1735873064224,4.83224433,3460.1,3460.0,3.2078]
[1735873065112,2.5728591,3460.1,3460.0,3.2078]
[1735873066721,5.96391687,3460.1,3460.0,3.2078]
[1735873068023,2.5728591,3460.1,3460.0,3.2078]
[1735873068225,0.28928,3460.1,3460.0,3.49709]
[1735873069528,3.68032777,3460.2,3460.1,0.28928]
[1735873069715,3.39105777,3460.2,3460.0,3.2078]
[1735873069916,0.28928,3460.1,3460.0,3.2078]
[1735873070325,42.09308181,3460.1,3460.0,3.2078]
[1735873072127,41.80380181,3460.1,3459.8,0.2893]
[1735873072325,1.29310181,3459.9,3459.8,0.2893]
[1735873072732,0.28931,3459.7,3459.6,3.49712]
[1735873072926,1.29311181,3459.7,3459.6,3.2078]
[1735873074426,3.55125694,3459.7,3459.6,3.2078]
[1735873075621,1.29311181,3459.7,3459.6,3.2078]
[1735873076228,2.57401227,3459.7,3459.6,3.2078]
[1735873077232,5.96507004,3459.7,3459.6,3.2078]
[1735873078526,0.28932,3459.6,3459.2,3.2078]
[1735873078724,0.28932,3459.6,3459.4,0.28933]
[1735873078930,0.28932,3459.6,3459.2,3.2078]
[1735873078931,2.28470227,3459.7,3459.2,3.2078]
[1735873079227,0.28934,3459.4,3459.2,3.49715]
[1735873079731,0.28934,3459.5,3459.3,0.28934]
[1735873079933,2.25700706,3459.6,3459.2,3.2078]
[1735873080137,2.54632706,3459.6,3459.4,0.28933]
[1735873081033,0.28933,3459.5,3459.4,0.28933]
[1735873081629,2.54633706,3459.6,3459.4,0.28933]
[1735873081834,0.28933,3459.5,3459.4,0.28933]
[1735873082425,0.28933,3459.5,3459.2,3.2078]
[1735873082734,0.28933,3459.5,3459.3,0.28934]
[1735873083430,0.28933,3459.5,3459.2,3.2078]
[1735873083431,2.25700706,3459.6,3459.5,0.28933]
[1735873084927,2.28470227,3459.7,3459.4,4.54794881]
[1735873085127,2.28470227,3459.7,3459.6,3.2078]
[1735873085430,2.57401227,3459.7,3459.6,3.2078]
[1735873086331,4.83101933,3459.7,3459.6,3.2078]
[1735873089039,4.54170933,3459.7,3459.6,3.49712]
[1735873090731,4.83101933,3459.7,3459.6,3.49712]
[1735873090932,4.83101933,3459.7,3459.6,3.2078]
[1735873091233,2.57401227,3459.7,3459.6,3.2078]
[1735873091941,2.28470227,3459.7,3459.6,3.2078]
[1735873092236,2.57401227,3459.7,3459.6,3.49712]
[1735873092429,2.25700706,3459.8,3459.6,3.2078]
[1735873092629,2.25700706,3459.8,3459.7,0.28931]
[1735873092835,3.39105777,3459.8,3459.7,0.28931]
[1735873093237,3.68036777,3459.8,3459.6,3.49712]
[1735873093436,3.39105777,3459.8,3459.6,3.49712]
[1735873093634,2.57401227,3459.7,3459.6,3.2078]
[1735873094234,2.57401227,3459.7,3459.6,3.49712]
[1735873094430,2.57401227,3459.7,3459.6,3.2078]
[1735873095635,45.63355054,3459.7,3459.5,0.28933]
[1735873096243,0.28933,3459.6,3459.4,4.54794881]
[1735873096439,0.28933,3459.6,3459.4,4.83727881]
[1735873096638,0.28933,3459.6,3459.4,4.54794881]
[1735873096945,0.28933,3459.5,3459.4,4.54794881]
[1735873098044,3.82524211,3459.5,3459.2,3.49715]
[1735873098246,0.28934,3459.4,3459.2,3.49715]
[1735873098851,4.11457211,3459.5,3459.3,0.28934]
[1735873099445,3.68038777,3459.5,3459.3,0.28934]
[1735873100145,3.68038777,3459.5,3459.2,3.2078]
[1735873100146,3.39105777,3459.5,3459.2,3.2078]
[1735873100346,3.39105777,3459.5,3459.4,0.28934]
[1735873100547,3.39105777,3459.5,3459.2,3.2078]
[1735873100739,2.25934611,3459.4,3459.2,3.2078]
[1735873101047,2.25934611,3459.4,3459.3,0.28935]
[1735873102449,4.51754648,3459.8,3459.3,0.28935]
[1735873102450,2.25934611,3459.7,3459.6,0.28932]
[1735873102651,2.25934611,3459.7,3459.6,3.49712]
[1735873105248,2.25934611,3459.7,3459.6,3.2078]
[1735873105451,2.25934611,3459.7,3459.6,3.49712]
[1735873105852,43.05934611,3459.7,3459.6,3.49712]
[1735873106150,44.19105777,3459.7,3459.6,3.49712]
[1735873107255,40.8,3459.7,3459.6,3.49712]
[1735873108047,41.08931,3459.7,3459.6,3.49712]
[1735873108248,41.08931,3459.7,3459.6,3.2078]
[1735873109854,46.04101157,3459.7,3459.6,3.2078]
[1735873112350,41.52346509,3459.7,3459.6,3.2078]
[1735873113954,51.21230859,3459.7,3459.6,3.2078]
[1735873115157,50.92299859,3459.7,3459.0,4.54794881]
[1735873115354,0.28936,3459.1,3459.0,4.54794881]
[1735873116562,0.28936,3459.1,3458.9,8.04511881]
[1735873116754,5.67518163,3459.2,3458.9,7.75574881]
[1735873117057,0.28937,3459.0,3458.9,8.04512881]
[1735873117258,0.28937,3459.0,3458.9,7.75574881]
[1735873118064,2.55023849,3459.0,3458.9,7.75574881]
[1735873119656,2.55023849,3459.0,3458.9,3.2078]
[1735873119657,4.11469318,3459.0,3458.9,3.2078]
[1735873120058,44.91469318,3459.0,3458.9,3.2078]
[1735873120960,45.61080832,3459.0,3458.9,3.2078]
[1735873122052,46.04505276,3459.0,3458.9,3.2078]